[Event "Titled Tuesday Blitz March 08 Early 2022"]
[White "Artemenko, Oleg"]
[Black "Omariev, Maksim"]
[WhiteFideId "14201798"]
[BlackFideId "4193423"]
[WhiteElo "2287"]
[BlackElo "2432"]
[Result "1-0"]
[Round "08"]
[TimeControl "180+1"]
[Date "2022.03.09"]
[WhiteClock "0:01:54"]
[BlackClock "0:00:08"]

1. d4 {[%clk 0:03:00]}  d5 {[%clk 0:02:57]} 2. Nc3 {[%clk 0:03:01]}  Nf6 {[%clk 0:02:53]} 3. Bf4 {[%clk 0:03:01]}  Bf5 {[%clk 0:02:44]} 4. f3 {[%clk 0:03:01]}  e6 {[%clk 0:02:31]} 5. g4 {[%clk 0:03:01]}  Bg6 {[%clk 0:02:31]} 6. h4 {[%clk 0:03:01]}  h5 {[%clk 0:02:31]} 7. g5 {[%clk 0:03:01]}  Nfd7 {[%clk 0:02:31]} 8. e3 {[%clk 0:03:01]}  a6 {[%clk 0:02:21]} 9. Bd3 {[%clk 0:03:01]}  Bxd3 {[%clk 0:02:20]} 10. Qxd3 {[%clk 0:03:02]}  g6 {[%clk 0:02:20]} 11. O-O-O {[%clk 0:03:02]}  c5 {[%clk 0:02:18]} 12. e4 {[%clk 0:03:02]}  Nc6 {[%clk 0:01:34]} 13. exd5 {[%clk 0:03:00]}  Nxd4 {[%clk 0:01:34]} 14. Nge2 {[%clk 0:02:52]}  e5 {[%clk 0:01:27]} 15. Rhe1 {[%clk 0:02:52]}  Bg7 {[%clk 0:00:48]} 16. Nxd4 {[%clk 0:02:47]}  cxd4 {[%clk 0:00:48]} 17. Qxd4 {[%clk 0:02:45]}  O-O {[%clk 0:00:45]} 18. Bxe5 {[%clk 0:02:45]}  Nxe5 {[%clk 0:00:45]} 19. Rxe5 {[%clk 0:02:46]}  Bxe5 {[%clk 0:00:34]} 20. Qxe5 {[%clk 0:02:47]}  Re8 {[%clk 0:00:34]} 21. Qf4 {[%clk 0:02:47]}  Qe7 {[%clk 0:00:23]} 22. Ne4 {[%clk 0:02:46]}  Kg7 {[%clk 0:00:22]} 23. d6 {[%clk 0:02:40]}  Qe5 {[%clk 0:00:22]} 24. Qe3 {[%clk 0:02:29]}  Rad8 {[%clk 0:00:22]} 25. Qb3 {[%clk 0:02:22]}  b5 {[%clk 0:00:21]} 26. Kb1 {[%clk 0:02:22]}  Re6 {[%clk 0:00:21]} 27. a3 {[%clk 0:02:19]}  Qf4 {[%clk 0:00:17]} 28. Qc3+ {[%clk 0:02:18]}  Qe5 {[%clk 0:00:17]} 29. Qc7 {[%clk 0:02:18]}  Ree8 {[%clk 0:00:07]} 30. Nf6 {[%clk 0:02:17]}  Rf8 {[%clk 0:00:07]} 31. Rd3 {[%clk 0:02:13]}  Qf5 {[%clk 0:00:05]} 32. Qe7 {[%clk 0:02:09]}  Qe6 {[%clk 0:00:04]} 33. Rc3 {[%clk 0:02:05]}  Rb8 {[%clk 0:00:02]} 34. Rc7 {[%clk 0:02:01]}  Qf5 {[%clk 0:00:02]} 35. Qe4 {[%clk 0:01:58]}  Qxe4 {[%clk 0:00:02]} 36. fxe4 {[%clk 0:01:59]}  Rfd8 {[%clk 0:00:02]} 37. e5 {[%clk 0:02:00]}  Kf8 {[%clk 0:00:03]} 38. Nd7+ {[%clk 0:01:58]}  Rxd7 {[%clk 0:00:03]} 39. Rxd7 {[%clk 0:01:59]}  Re8 {[%clk 0:00:04]} 40. Ra7 {[%clk 0:01:58]}  Rxe5 {[%clk 0:00:04]} 41. Ra8+ {[%clk 0:01:58]}  Re8 {[%clk 0:00:03]} 42. Rxa6 {[%clk 0:01:56]}  Rd8 {[%clk 0:00:02]} 43. Rb6 {[%clk 0:01:53]}  f6 {[%clk 0:00:02]} 44. gxf6 {[%clk 0:01:53]}  Kf7 {[%clk 0:00:03]} 45. Rxb5 {[%clk 0:01:51]}  Rxd6 {[%clk 0:00:03]} 46. c3 {[%clk 0:01:50]}  Kxf6 {[%clk 0:00:04]} 47. Kc2 {[%clk 0:01:50]}  Re6 {[%clk 0:00:04]} 48. a4 {[%clk 0:01:49]}  Re2+ {[%clk 0:00:03]} 49. Kb3 {[%clk 0:01:49]}  Rh2 {[%clk 0:00:04]} 50. Rb4 {[%clk 0:01:49]}  g5 {[%clk 0:00:04]} 51. hxg5+ {[%clk 0:01:50]}  Kxg5 {[%clk 0:00:05]} 52. a5 {[%clk 0:01:50]}  Rh1 {[%clk 0:00:05]} 53. a6 {[%clk 0:01:50]}  Ra1 {[%clk 0:00:06]} 54. Ra4 {[%clk 0:01:51]}  Rxa4 {[%clk 0:00:05]} 55. Kxa4 {[%clk 0:01:51]}  h4 {[%clk 0:00:06]} 56. a7 {[%clk 0:01:52]}  h3 {[%clk 0:00:07]} 57. a8=Q {[%clk 0:01:53]}  h2 {[%clk 0:00:08]} 58. Qh1 {[%clk 0:01:54]} 1-0


[Site "https://www.chess.com"]

[Event "Titled Tuesday Blitz March 08 Early 2022"]
[White "Avila Pavas, Santiago"]
[Black "Timofeev, Artyom"]
[WhiteFideId "4437128"]
[BlackFideId "4140419"]
[WhiteElo "2242"]
[BlackElo "2594"]
[Result "0-1"]
[Round "08"]
[TimeControl "180+1"]
[Date "2022.03.08"]
[WhiteClock "0:00:01"]
[BlackClock "0:00:28"]

1. d4 {[%clk 0:03:00]}  d5 {[%clk 0:02:59]} 2. Bf4 {[%clk 0:03:00]}  Nf6 {[%clk 0:02:58]} 3. e3 {[%clk 0:03:01]}  c5 {[%clk 0:02:58]} 4. c3 {[%clk 0:03:01]}  Nc6 {[%clk 0:02:57]} 5. Nd2 {[%clk 0:03:01]}  g6 {[%clk 0:02:56]} 6. Ngf3 {[%clk 0:03:01]}  Bg7 {[%clk 0:02:56]} 7. Bd3 {[%clk 0:02:54]}  O-O {[%clk 0:02:56]} 8. Qe2 {[%clk 0:02:53]}  Nd7 {[%clk 0:02:56]} 9. O-O-O {[%clk 0:02:30]}  Qa5 {[%clk 0:02:47]} 10. Kb1 {[%clk 0:02:29]}  e5 {[%clk 0:02:47]} 11. dxe5 {[%clk 0:02:23]}  Ndxe5 {[%clk 0:02:47]} 12. Bc2 {[%clk 0:02:17]}  Be6 {[%clk 0:02:41]} 13. Ng5 {[%clk 0:02:15]}  b5 {[%clk 0:02:28]} 14. h4 {[%clk 0:01:51]}  h6 {[%clk 0:02:02]} 15. Nxe6 {[%clk 0:01:17]}  fxe6 {[%clk 0:02:02]} 16. Bxe5 {[%clk 0:01:04]}  Nxe5 {[%clk 0:02:01]} 17. f4 {[%clk 0:01:05]}  Nc4 {[%clk 0:02:01]} 18. Nb3 {[%clk 0:01:05]}  Qb6 {[%clk 0:01:55]} 19. Qd3 {[%clk 0:00:25]}  Rf6 {[%clk 0:01:43]} 20. e4 {[%clk 0:00:26]}  Rxf4 {[%clk 0:01:10]} 21. exd5 {[%clk 0:00:26]}  Ne5 {[%clk 0:01:10]} 22. Qh3 {[%clk 0:00:18]}  exd5 {[%clk 0:01:04]} 23. Rxd5 {[%clk 0:00:19]}  b4 {[%clk 0:01:04]} 24. Rhd1 {[%clk 0:00:11]}  bxc3 {[%clk 0:01:02]} 25. Rd6 {[%clk 0:00:12]}  Qc7 {[%clk 0:00:54]} 26. Qe6+ {[%clk 0:00:06]}  Kh8 {[%clk 0:00:52]} 27. Bxg6 {[%clk 0:00:05]}  c4 {[%clk 0:00:39]} 28. Nd4 {[%clk 0:00:01]}  Rb8 {[%clk 0:00:36]} 29. b3 {[%clk 0:00:01]}  cxb3 {[%clk 0:00:36]} 30. Nc6 {[%clk 0:00:01]}  c2+ {[%clk 0:00:33]} 31. Bxc2 {[%clk 0:00:02]}  bxc2+ {[%clk 0:00:33]} 32. Kxc2 {[%clk 0:00:02]}  Nxc6 {[%clk 0:00:30]} 33. Rxc6 {[%clk 0:00:01]}  Rf2+ {[%clk 0:00:28]} 0-1


[Site "https://www.chess.com"]

[Event "Titled Tuesday Blitz March 08 Early 2022"]
[White "Barrientos, Sergio E"]
[Black "Bodnaruk, Anastasia"]
[WhiteFideId "4401824"]
[BlackFideId "4181751"]
[WhiteElo "2397"]
[BlackElo "2393"]
[Result "1-0"]
[Round "08"]
[TimeControl "180+1"]
[Date "2022.03.09"]
[WhiteClock "0:01:34"]
[BlackClock "0:01:10"]

1. d4 {[%clk 0:03:00]}  Nf6 {[%clk 0:02:59]} 2. c4 {[%clk 0:03:00]}  g6 {[%clk 0:02:59]} 3. Nc3 {[%clk 0:03:00]}  Bg7 {[%clk 0:03:00]} 4. e4 {[%clk 0:03:00]}  d6 {[%clk 0:03:00]} 5. f3 {[%clk 0:03:00]}  O-O {[%clk 0:03:00]} 6. Be3 {[%clk 0:03:01]}  c5 {[%clk 0:02:57]} 7. Nge2 {[%clk 0:03:01]}  Nc6 {[%clk 0:02:57]} 8. d5 {[%clk 0:03:01]}  Na5 {[%clk 0:02:56]} 9. Ng3 {[%clk 0:03:01]}  e6 {[%clk 0:02:53]} 10. Be2 {[%clk 0:03:00]}  exd5 {[%clk 0:02:52]} 11. cxd5 {[%clk 0:03:01]}  a6 {[%clk 0:02:52]} 12. a4 {[%clk 0:03:01]}  Bd7 {[%clk 0:02:44]} 13. O-O {[%clk 0:02:59]}  b5 {[%clk 0:02:35]} 14. axb5 {[%clk 0:02:57]}  axb5 {[%clk 0:02:36]} 15. Nxb5 {[%clk 0:02:54]}  Qb6 {[%clk 0:02:25]} 16. b4 {[%clk 0:02:33]}  Bxb5 {[%clk 0:02:16]} 17. bxa5 {[%clk 0:02:19]}  Rxa5 {[%clk 0:02:15]} 18. Qb3 {[%clk 0:02:10]}  Rxa1 {[%clk 0:01:45]} 19. Rxa1 {[%clk 0:02:08]}  Rb8 {[%clk 0:01:43]} 20. Rb1 {[%clk 0:02:00]}  c4 {[%clk 0:01:31]} 21. Bxc4 {[%clk 0:01:44]}  Bxc4 {[%clk 0:01:18]} 22. Qxb6 {[%clk 0:01:43]}  Rxb6 {[%clk 0:01:19]} 23. Rxb6 {[%clk 0:01:43]}  Bf8 {[%clk 0:01:12]} 24. Rb8 {[%clk 0:01:37]}  Kg7 {[%clk 0:01:10]} 25. Bh6+ {[%clk 0:01:32]}  Kxh6 {[%clk 0:01:10]} 26. Rxf8 {[%clk 0:01:33]}  Kg7 {[%clk 0:01:10]} 27. Rd8 {[%clk 0:01:34]} 1-0


[Site "https://www.chess.com"]

[Event "Titled Tuesday Blitz March 08 Early 2022"]
[White "Bashirli, Nail"]
[Black "Fier, Alexandr"]
[WhiteFideId "13406809"]
[BlackFideId "2107139"]
[WhiteElo "2333"]
[BlackElo "2571"]
[Result "1-0"]
[Round "08"]
[TimeControl "180+1"]
[Date "2022.03.08"]
[WhiteClock "0:01:04"]
[BlackClock "0:01:00"]

1. e4 {[%clk 0:03:00]}  e6 {[%clk 0:03:00]} 2. Qe2 {[%clk 0:02:50]}  c5 {[%clk 0:02:56]} 3. g3 {[%clk 0:02:47]}  Nc6 {[%clk 0:02:57]} 4. Bg2 {[%clk 0:02:46]}  g6 {[%clk 0:02:57]} 5. c3 {[%clk 0:02:42]}  Bg7 {[%clk 0:02:57]} 6. f4 {[%clk 0:02:41]}  d6 {[%clk 0:02:56]} 7. Nf3 {[%clk 0:02:41]}  Nge7 {[%clk 0:02:56]} 8. O-O {[%clk 0:02:41]}  O-O {[%clk 0:02:56]} 9. d3 {[%clk 0:02:41]}  b5 {[%clk 0:02:55]} 10. Be3 {[%clk 0:02:42]}  b4 {[%clk 0:02:50]} 11. c4 {[%clk 0:02:37]}  Rb8 {[%clk 0:02:47]} 12. Qc2 {[%clk 0:02:26]}  e5 {[%clk 0:02:47]} 13. Nbd2 {[%clk 0:02:25]}  f5 {[%clk 0:02:47]} 14. Rae1 {[%clk 0:02:25]}  Kh8 {[%clk 0:02:38]} 15. fxe5 {[%clk 0:02:19]}  Nxe5 {[%clk 0:02:36]} 16. Nxe5 {[%clk 0:02:19]}  Bxe5 {[%clk 0:02:37]} 17. Nf3 {[%clk 0:02:18]}  Bg7 {[%clk 0:02:36]} 18. e5 {[%clk 0:02:16]}  Nc6 {[%clk 0:02:30]} 19. exd6 {[%clk 0:02:12]}  Qxd6 {[%clk 0:02:31]} 20. Bf4 {[%clk 0:02:12]}  Qd8 {[%clk 0:02:25]} 21. Bxb8 {[%clk 0:02:12]}  Nxb8 {[%clk 0:02:26]} 22. Qf2 {[%clk 0:02:10]}  Qd6 {[%clk 0:02:24]} 23. Kh1 {[%clk 0:02:03]}  Nc6 {[%clk 0:02:23]} 24. Qe3 {[%clk 0:02:00]}  Bd7 {[%clk 0:02:22]} 25. b3 {[%clk 0:02:00]}  h6 {[%clk 0:02:19]} 26. Qf4 {[%clk 0:01:57]}  Qf6 {[%clk 0:02:04]} 27. Qc7 {[%clk 0:01:55]}  Rd8 {[%clk 0:02:04]} 28. Re2 {[%clk 0:01:46]}  Be8 {[%clk 0:01:58]} 29. Rfe1 {[%clk 0:01:46]}  Bf7 {[%clk 0:01:58]} 30. Ne5 {[%clk 0:01:43]}  Nxe5 {[%clk 0:01:57]} 31. Rxe5 {[%clk 0:01:44]}  Rxd3 {[%clk 0:01:51]} 32. Re7 {[%clk 0:01:44]}  Bg8 {[%clk 0:01:42]} 33. Re8 {[%clk 0:01:35]}  Kh7 {[%clk 0:01:41]} 34. Qxc5 {[%clk 0:01:25]}  Rd2 {[%clk 0:01:37]} 35. Qc8 {[%clk 0:01:21]}  Bf7 {[%clk 0:01:36]} 36. R8e7 {[%clk 0:01:20]}  Rxa2 {[%clk 0:01:11]} 37. Rxf7 {[%clk 0:01:04]}  Qxf7 {[%clk 0:01:10]} 38. Bd5 {[%clk 0:01:05]}  Qf8 {[%clk 0:01:09]} 39. Re8 {[%clk 0:01:05]}  Qf6 {[%clk 0:01:00]} 40. Rh8+ {[%clk 0:01:04]} 1-0


[Site "https://www.chess.com"]

[Event "Titled Tuesday Blitz March 08 Early 2022"]
[White "Batsiashvili, Nino"]
[Black "Clawitter, Craig"]
[WhiteFideId "13602993"]
[BlackFideId "2023105"]
[WhiteElo "2192"]
[BlackElo "2278"]
[Result "1-0"]
[Round "08"]
[TimeControl "180+1"]
[Date "2022.03.09"]
[WhiteClock "0:01:24"]
[BlackClock "0:00:01"]

1. d4 {[%clk 0:03:00]}  e6 {[%clk 0:02:57]} 2. c4 {[%clk 0:03:01]}  Nf6 {[%clk 0:02:54]} 3. Nc3 {[%clk 0:03:01]}  d5 {[%clk 0:02:54]} 4. Nf3 {[%clk 0:03:01]}  dxc4 {[%clk 0:02:52]} 5. e4 {[%clk 0:03:00]}  Bb4 {[%clk 0:02:38]} 6. Bxc4 {[%clk 0:02:58]}  Nxe4 {[%clk 0:02:33]} 7. O-O {[%clk 0:02:57]}  Nxc3 {[%clk 0:02:00]} 8. bxc3 {[%clk 0:02:58]}  Be7 {[%clk 0:01:57]} 9. Re1 {[%clk 0:02:57]}  O-O {[%clk 0:01:57]} 10. Bf4 {[%clk 0:02:56]}  c5 {[%clk 0:01:56]} 11. h4 {[%clk 0:02:52]}  Nc6 {[%clk 0:01:55]} 12. h5 {[%clk 0:02:50]}  h6 {[%clk 0:01:52]} 13. Qd3 {[%clk 0:02:46]}  Na5 {[%clk 0:01:16]} 14. Bb5 {[%clk 0:02:41]}  Bd7 {[%clk 0:01:11]} 15. Ne5 {[%clk 0:02:35]}  Bxb5 {[%clk 0:00:58]} 16. Qxb5 {[%clk 0:02:36]}  a6 {[%clk 0:00:41]} 17. Qd3 {[%clk 0:02:32]}  cxd4 {[%clk 0:00:37]} 18. cxd4 {[%clk 0:02:33]}  Rc8 {[%clk 0:00:35]} 19. Qg3 {[%clk 0:02:32]}  Kh8 {[%clk 0:00:20]} 20. Rad1 {[%clk 0:02:31]}  Qd5 {[%clk 0:00:18]} 21. Rd3 {[%clk 0:02:31]}  Nc6 {[%clk 0:00:17]} 22. Red1 {[%clk 0:02:22]}  Nxe5 {[%clk 0:00:16]} 23. Bxe5 {[%clk 0:02:23]}  Bf6 {[%clk 0:00:15]} 24. Bxf6 {[%clk 0:02:14]}  gxf6 {[%clk 0:00:16]} 25. Qf4 {[%clk 0:02:14]}  Qg5 {[%clk 0:00:15]} 26. Qf3 {[%clk 0:02:13]}  Rg8 {[%clk 0:00:15]} 27. Qxb7 {[%clk 0:02:12]}  Rb8 {[%clk 0:00:14]} 28. Qf3 {[%clk 0:02:08]}  Rb2 {[%clk 0:00:14]} 29. d5 {[%clk 0:02:08]}  e5 {[%clk 0:00:09]} 30. d6 {[%clk 0:02:08]}  Rb4 {[%clk 0:00:05]} 31. d7 {[%clk 0:02:06]}  Rf4 {[%clk 0:00:05]} 32. Qh3 {[%clk 0:01:58]}  Rg4 {[%clk 0:00:04]} 33. Rg3 {[%clk 0:01:47]}  Rxg3 {[%clk 0:00:03]} 34. Qxg3 {[%clk 0:01:46]}  Qxg3 {[%clk 0:00:03]} 35. fxg3 {[%clk 0:01:47]}  Rd8 {[%clk 0:00:03]} 36. g4 {[%clk 0:01:46]}  Kg7 {[%clk 0:00:04]} 37. Rd6 {[%clk 0:01:44]}  Kf8 {[%clk 0:00:04]} 38. Rxf6 {[%clk 0:01:42]}  Rxd7 {[%clk 0:00:04]} 39. Rxh6 {[%clk 0:01:41]}  Rd1+ {[%clk 0:00:03]} 40. Kh2 {[%clk 0:01:41]}  e4 {[%clk 0:00:03]} 41. Kg3 {[%clk 0:01:36]}  Rf1 {[%clk 0:00:02]} 42. Rh8+ {[%clk 0:01:24]}  Ke7 {[%clk 0:00:02]} 43. h6 {[%clk 0:01:24]}  e3 {[%clk 0:00:02]} 44. h7 {[%clk 0:01:25]}  e2 {[%clk 0:00:02]} 45. Re8+ {[%clk 0:01:24]}  Kxe8 {[%clk 0:00:02]} 46. h8=Q+ {[%clk 0:01:25]}  Kd7 {[%clk 0:00:01]} 47. Qd4+ {[%clk 0:01:25]}  Kc8 {[%clk 0:00:01]} 48. Qc4+ {[%clk 0:01:24]} 1-0


[Site "https://www.chess.com"]

[Event "Titled Tuesday Blitz March 08 Early 2022"]
[White "Begunov, Konstantin"]
[Black "Lopez Del Alamo, Antonio"]
[WhiteFideId "4118510"]
[BlackFideId "2227339"]
[WhiteElo "2262"]
[BlackElo "2082"]
[Result "1-0"]
[Round "08"]
[TimeControl "180+1"]
[Date "2022.03.09"]
[WhiteClock "0:02:01"]
[BlackClock "0:00:37"]

1. d4 {[%clk 0:02:55]}  Nf6 {[%clk 0:02:59]} 2. c4 {[%clk 0:02:55]}  g6 {[%clk 0:02:59]} 3. f3 {[%clk 0:02:55]}  Bg7 {[%clk 0:02:59]} 4. e4 {[%clk 0:02:55]}  d6 {[%clk 0:02:59]} 5. Nc3 {[%clk 0:02:56]}  O-O {[%clk 0:02:59]} 6. Be3 {[%clk 0:02:56]}  b6 {[%clk 0:02:59]} 7. Bd3 {[%clk 0:02:56]}  a6 {[%clk 0:02:59]} 8. Nge2 {[%clk 0:02:56]}  c5 {[%clk 0:02:59]} 9. d5 {[%clk 0:02:55]}  e6 {[%clk 0:02:59]} 10. dxe6 {[%clk 0:02:55]}  Bxe6 {[%clk 0:02:58]} 11. O-O {[%clk 0:02:56]}  Nc6 {[%clk 0:02:56]} 12. Qd2 {[%clk 0:02:56]}  Nd7 {[%clk 0:02:50]} 13. b3 {[%clk 0:02:53]}  Rb8 {[%clk 0:02:42]} 14. Rad1 {[%clk 0:02:50]}  f5 {[%clk 0:02:09]} 15. exf5 {[%clk 0:02:47]}  gxf5 {[%clk 0:02:09]} 16. Bc2 {[%clk 0:02:44]}  Be5 {[%clk 0:01:48]} 17. f4 {[%clk 0:02:43]}  Bxc3 {[%clk 0:01:24]} 18. Nxc3 {[%clk 0:02:39]}  Nf6 {[%clk 0:01:00]} 19. Qxd6 {[%clk 0:02:36]}  Qxd6 {[%clk 0:01:01]} 20. Rxd6 {[%clk 0:02:35]}  Nd8 {[%clk 0:01:02]} 21. Na4 {[%clk 0:02:17]}  Ng4 {[%clk 0:00:41]} 22. Bc1 {[%clk 0:02:11]}  b5 {[%clk 0:00:41]} 23. Nxc5 {[%clk 0:02:11]}  Bf7 {[%clk 0:00:40]} 24. Nd7 {[%clk 0:02:09]}  Nb7 {[%clk 0:00:37]} 25. Rb6 {[%clk 0:02:01]} 1-0


[Site "https://www.chess.com"]

[Event "Titled Tuesday Blitz March 08 Early 2022"]
[White "Bettalli, Francesco"]
[Black "Arabidze, Meri"]
[WhiteFideId "2816453"]
[BlackFideId "13604040"]
[WhiteElo "2216"]
[BlackElo "2335"]
[Result "1-0"]
[Round "08"]
[TimeControl "180+1"]
[Date "2022.03.09"]
[WhiteClock "0:00:07"]
[BlackClock "0:00:01"]

1. d4 {[%clk 0:03:00]}  f5 {[%clk 0:02:59]} 2. g4 {[%clk 0:03:00]}  d5 {[%clk 0:02:58]} 3. gxf5 {[%clk 0:02:59]}  Bxf5 {[%clk 0:02:59]} 4. Bg2 {[%clk 0:03:00]}  Nf6 {[%clk 0:02:58]} 5. Bg5 {[%clk 0:02:58]}  c6 {[%clk 0:02:55]} 6. e3 {[%clk 0:02:56]}  Nbd7 {[%clk 0:02:55]} 7. Ne2 {[%clk 0:02:56]}  Qb6 {[%clk 0:02:54]} 8. Nbc3 {[%clk 0:02:54]}  h6 {[%clk 0:02:44]} 9. Bf4 {[%clk 0:02:54]}  g5 {[%clk 0:02:41]} 10. Be5 {[%clk 0:02:53]}  Bg7 {[%clk 0:02:28]} 11. Ng3 {[%clk 0:02:53]}  Bg6 {[%clk 0:02:27]} 12. h4 {[%clk 0:02:52]}  Qxb2 {[%clk 0:02:22]} 13. Nce2 {[%clk 0:02:50]}  Bxc2 {[%clk 0:02:09]} 14. Qc1 {[%clk 0:02:50]}  Qxc1+ {[%clk 0:02:03]} 15. Rxc1 {[%clk 0:02:51]}  Bg6 {[%clk 0:02:03]} 16. f4 {[%clk 0:02:32]}  gxh4 {[%clk 0:01:56]} 17. Rxh4 {[%clk 0:02:29]}  h5 {[%clk 0:01:47]} 18. f5 {[%clk 0:02:23]}  Bf7 {[%clk 0:01:47]} 19. Nf4 {[%clk 0:02:24]}  O-O-O {[%clk 0:01:32]} 20. a4 {[%clk 0:02:15]}  Rdg8 {[%clk 0:01:02]} 21. Bf1 {[%clk 0:02:14]}  Ng4 {[%clk 0:00:44]} 22. Bxg7 {[%clk 0:02:07]}  Rxg7 {[%clk 0:00:45]} 23. Rc3 {[%clk 0:01:58]}  Ngf6 {[%clk 0:00:40]} 24. Rh3 {[%clk 0:01:26]}  Rxg3 {[%clk 0:00:36]} 25. Rxg3 {[%clk 0:01:27]}  Ne4 {[%clk 0:00:36]} 26. Rg7 {[%clk 0:01:27]}  Nxc3 {[%clk 0:00:36]} 27. Rxf7 {[%clk 0:01:26]}  Nf6 {[%clk 0:00:17]} 28. Rxe7 {[%clk 0:01:21]}  Nce4 {[%clk 0:00:17]} 29. a5 {[%clk 0:01:18]}  a6 {[%clk 0:00:17]} 30. Ne6 {[%clk 0:01:13]}  h4 {[%clk 0:00:15]} 31. Bh3 {[%clk 0:01:10]}  Rg8 {[%clk 0:00:16]} 32. Ke2 {[%clk 0:00:55]}  Rg3 {[%clk 0:00:13]} 33. Nf4 {[%clk 0:00:55]}  Rg8 {[%clk 0:00:10]} 34. Ne6 {[%clk 0:00:53]}  Rg3 {[%clk 0:00:05]} 35. Nf4 {[%clk 0:00:53]}  Kb8 {[%clk 0:00:06]} 36. Rf7 {[%clk 0:00:40]}  Ka7 {[%clk 0:00:06]} 37. Rf8 {[%clk 0:00:31]}  Nc3+ {[%clk 0:00:05]} 38. Kd3 {[%clk 0:00:29]}  Nce4 {[%clk 0:00:04]} 39. Ke2 {[%clk 0:00:26]}  Nh5 {[%clk 0:00:02]} 40. Nxh5 {[%clk 0:00:23]}  Rxh3 {[%clk 0:00:02]} 41. Nf4 {[%clk 0:00:24]}  Rh2+ {[%clk 0:00:02]} 42. Kf1 {[%clk 0:00:21]}  Rh1+ {[%clk 0:00:03]} 43. Kg2 {[%clk 0:00:21]}  Re1 {[%clk 0:00:03]} 44. Ne6 {[%clk 0:00:21]}  Rxe3 {[%clk 0:00:03]} 45. Nd8 {[%clk 0:00:22]}  Re2+ {[%clk 0:00:02]} 46. Kf3 {[%clk 0:00:21]}  Rf2+ {[%clk 0:00:03]} 47. Ke3 {[%clk 0:00:22]}  Rg2 {[%clk 0:00:03]} 48. Rf7 {[%clk 0:00:22]}  Rg3+ {[%clk 0:00:02]} 49. Kf4 {[%clk 0:00:22]}  Kb8 {[%clk 0:00:01]} 50. Rf8 {[%clk 0:00:19]}  Kc7 {[%clk 0:00:01]} 51. Ne6+ {[%clk 0:00:19]}  Kd7 {[%clk 0:00:02]} 52. Rf7+ {[%clk 0:00:18]}  Ke8 {[%clk 0:00:02]} 53. Rh7 {[%clk 0:00:16]}  h3 {[%clk 0:00:02]} 54. Ke5 {[%clk 0:00:16]}  Re3 {[%clk 0:00:02]} 55. Kf4 {[%clk 0:00:09]}  Re2 {[%clk 0:00:02]} 56. Rxh3 {[%clk 0:00:04]}  Nd6 {[%clk 0:00:02]} 57. Rh8+ {[%clk 0:00:04]}  Kf7 {[%clk 0:00:02]} 58. Rh7+ {[%clk 0:00:05]}  Kg8 {[%clk 0:00:03]} 59. Rd7 {[%clk 0:00:04]}  Rg2 {[%clk 0:00:03]} 60. Rxd6 {[%clk 0:00:04]}  Ra2 {[%clk 0:00:03]} 61. Ke5 {[%clk 0:00:04]}  Re2+ {[%clk 0:00:03]} 62. Kf6 {[%clk 0:00:04]}  Re4 {[%clk 0:00:02]} 63. Rd8+ {[%clk 0:00:05]}  Kh7 {[%clk 0:00:01]} 64. Ng5+ {[%clk 0:00:06]}  Kh6 {[%clk 0:00:01]} 65. Rh8# {[%clk 0:00:07]} 1-0


[Site "https://www.chess.com"]

[Event "Titled Tuesday Blitz March 08 Early 2022"]
[White "Bowden, Karl"]
[Black "De Souza, Cristiano Gomes"]
[WhiteFideId "400548"]
[BlackFideId "2151758"]
[WhiteElo "2371"]
[BlackElo "2068"]
[Result "1-0"]
[Round "08"]
[TimeControl "180+1"]
[Date "2022.03.09"]
[WhiteClock "0:00:55"]
[BlackClock "0:01:16"]

1. e4 {[%clk 0:02:59]}  c5 {[%clk 0:02:50]} 2. c3 {[%clk 0:02:56]}  d6 {[%clk 0:02:50]} 3. d4 {[%clk 0:02:56]}  Nf6 {[%clk 0:02:50]} 4. Bd3 {[%clk 0:02:55]}  Bd7 {[%clk 0:02:50]} 5. dxc5 {[%clk 0:02:46]}  dxc5 {[%clk 0:02:49]} 6. e5 {[%clk 0:02:46]}  Nd5 {[%clk 0:02:45]} 7. Be4 {[%clk 0:02:09]}  Bc6 {[%clk 0:02:44]} 8. e6 {[%clk 0:02:08]}  fxe6 {[%clk 0:02:38]} 9. Qh5+ {[%clk 0:01:29]}  Kd7 {[%clk 0:02:37]} 10. Nf3 {[%clk 0:01:28]}  Kc8 {[%clk 0:02:28]} 11. Qh3 {[%clk 0:01:26]}  Bd7 {[%clk 0:02:18]} 12. O-O {[%clk 0:01:24]}  Nc6 {[%clk 0:02:15]} 13. Re1 {[%clk 0:01:22]}  Qc7 {[%clk 0:02:03]} 14. Qh4 {[%clk 0:01:17]}  Nf6 {[%clk 0:01:57]} 15. Bc2 {[%clk 0:01:15]}  b6 {[%clk 0:01:56]} 16. Nbd2 {[%clk 0:01:14]}  Kb7 {[%clk 0:01:46]} 17. Nc4 {[%clk 0:01:14]}  Rd8 {[%clk 0:01:40]} 18. Bf4 {[%clk 0:01:14]}  Qc8 {[%clk 0:01:39]} 19. Nfe5 {[%clk 0:01:13]}  Nxe5 {[%clk 0:01:38]} 20. Nxe5 {[%clk 0:01:13]}  Bc6 {[%clk 0:01:38]} 21. Nf7 {[%clk 0:01:08]}  Rg8 {[%clk 0:01:35]} 22. Nxd8+ {[%clk 0:01:08]}  Qxd8 {[%clk 0:01:35]} 23. Be5 {[%clk 0:01:07]}  g5 {[%clk 0:01:32]} 24. Qg3 {[%clk 0:01:04]}  Nh5 {[%clk 0:01:29]} 25. Qe3 {[%clk 0:01:03]}  Nf4 {[%clk 0:01:28]} 26. Be4 {[%clk 0:01:03]}  Qe8 {[%clk 0:01:23]} 27. Rad1 {[%clk 0:01:01]}  h6 {[%clk 0:01:20]} 28. b3 {[%clk 0:01:00]}  h5 {[%clk 0:01:20]} 29. Qf3 {[%clk 0:00:55]}  Bh6 {[%clk 0:01:17]} 30. Bxc6+ {[%clk 0:00:55]}  Qxc6 {[%clk 0:01:16]} 31. Rd7+ {[%clk 0:00:55]} 1-0


[Site "https://www.chess.com"]

[Event "Titled Tuesday Blitz March 08 Early 2022"]
[White "Carre, Sylvain"]
[Black "Kett, Tim"]
[WhiteFideId "642118"]
[BlackFideId "1801210"]
[WhiteElo "2105"]
[BlackElo "2098"]
[Result "0-1"]
[Round "08"]
[TimeControl "180+1"]
[Date "2022.03.09"]
[WhiteClock "0:00:07"]
[BlackClock "0:00:25"]

1. d4 {[%clk 0:02:59]}  d5 {[%clk 0:02:59]} 2. Bf4 {[%clk 0:02:55]}  e6 {[%clk 0:02:59]} 3. e3 {[%clk 0:02:55]}  c5 {[%clk 0:02:59]} 4. c3 {[%clk 0:02:55]}  Nc6 {[%clk 0:02:59]} 5. Nd2 {[%clk 0:02:54]}  Nf6 {[%clk 0:02:59]} 6. Bd3 {[%clk 0:02:52]}  Bd6 {[%clk 0:02:53]} 7. Bg3 {[%clk 0:02:52]}  Qc7 {[%clk 0:02:41]} 8. dxc5 {[%clk 0:02:49]}  Bxg3 {[%clk 0:02:40]} 9. hxg3 {[%clk 0:02:50]}  Ne5 {[%clk 0:02:40]} 10. Bb5+ {[%clk 0:02:46]}  Bd7 {[%clk 0:02:40]} 11. Bxd7+ {[%clk 0:02:38]}  Nfxd7 {[%clk 0:02:40]} 12. Ndf3 {[%clk 0:02:22]}  Qxc5 {[%clk 0:02:35]} 13. Nxe5 {[%clk 0:02:18]}  Nxe5 {[%clk 0:02:35]} 14. Nf3 {[%clk 0:02:18]}  Nc4 {[%clk 0:01:58]} 15. Qe2 {[%clk 0:01:42]}  O-O {[%clk 0:01:45]} 16. Nd4 {[%clk 0:01:14]}  g6 {[%clk 0:01:37]} 17. g4 {[%clk 0:01:05]}  e5 {[%clk 0:01:34]} 18. Nb3 {[%clk 0:01:01]}  Qe7 {[%clk 0:01:26]} 19. Rb1 {[%clk 0:00:48]}  Rfe8 {[%clk 0:01:24]} 20. Qf3 {[%clk 0:00:47]}  Rad8 {[%clk 0:01:17]} 21. Qh3 {[%clk 0:00:36]}  f6 {[%clk 0:01:17]} 22. O-O {[%clk 0:00:29]}  a5 {[%clk 0:01:08]} 23. Rfd1 {[%clk 0:00:29]}  b5 {[%clk 0:00:56]} 24. Qf3 {[%clk 0:00:28]}  a4 {[%clk 0:00:50]} 25. Nd2 {[%clk 0:00:24]}  e4 {[%clk 0:00:50]} 26. Qe2 {[%clk 0:00:23]}  Qe6 {[%clk 0:00:41]} 27. b3 {[%clk 0:00:20]}  Ne5 {[%clk 0:00:40]} 28. Qxb5 {[%clk 0:00:15]}  Qxg4 {[%clk 0:00:38]} 29. bxa4 {[%clk 0:00:10]}  Nf3+ {[%clk 0:00:38]} 30. Nxf3 {[%clk 0:00:09]}  exf3 {[%clk 0:00:38]} 31. Qf1 {[%clk 0:00:10]}  Re5 {[%clk 0:00:31]} 32. Rb4 {[%clk 0:00:09]}  fxg2 {[%clk 0:00:25]} 33. Qxg2 {[%clk 0:00:07]}  Qxd1+ {[%clk 0:00:25]} 0-1


[Site "https://www.chess.com"]